[Event "GER-ch Youth U12 2020"]
[Site "Willingen"]
[Date "2020.10.28"]
[Round "3.9"]
[White "Klaska, Philipp Leon"]
[Black "Fruth, David"]
[Result "1-0"]
[ECO "B72"]
[WhiteElo "1716"]
[BlackElo "1665"]
[Annotator "NA"]
[PlyCount "49"]
[EventDate "2020.10.27"]
[EventType "swiss"]
[EventRounds "7"]
[EventCountry "GER"]
[SourceTitle "playchess.com"]
[Source "ChessBase"]
[SourceQuality "1"]
[TimeControl "40/5400+30:1800+30"]

1. e4 {[%emt 0:00:00]} c5 {[%emt 0:00:00]} 2. Nf3 {[%emt 0:00:00]} g6 {[%emt 0:00:00]} 3. d4 {[%emt 0:00:00]} Bg7 {[%emt 0:00:00]} 4. Nc3 {[%emt 0:00:34]} cxd4 {[%emt 0:00:00]} 5. Nxd4 {[%emt 0:00:07]} Nc6 {[%emt 0:00:00]} 6. Be3 {[%emt 0:00:46]} Nf6 {[%emt 0:00:00]} 7. Be2 {[%emt 0:00:50]} O-O {[%emt 0:00:06]} 8. Qd2 {[%emt 0:01:51]} d6 {[%emt 0:00:44]} 9. O-O-O {[%emt 0:01:53]} Bd7 {[%emt 0:00:19]} 10. h4 {[%emt 0:01:31]} Rc8 {[%emt 0:00:25]} 11. h5 {[%emt 0:04:31]} Nb4 {[%emt 0:01:37]} 12. Kb1 {[%emt 0:03:37]} d5 {[%emt 0:07:15]} 13. e5 {[%emt 0:07:26]} Nxh5 {[%emt 0:02:18]} 14. Bxh5 {[%emt 0:03:02]} gxh5 {[%emt 0:00:07]} 15. Bh6 {[%emt 0:00:36]} Qb6 {[%emt 0:10:30]} 16. Bxg7 {[%emt 0:12:35]} Kxg7 {[%emt 0:00:05]} 17. Rxh5 {[%emt 0:00:38]} f6 {[%emt 0:10:14]} 18. Qh6+ {[%emt 0:06:02]} Kf7 {[%emt 0:00:09]} 19. Qxh7+ {[%emt 0:00:45]} Ke8 {[%emt 0:00:06]} 20. Nf5 {[%emt 0:06:18]} Bxf5 {[%emt 0:00:31]} 21. Qxf5 {[%emt 0:01:19]} Rxc3 {[%emt 0:00:37]} 22. exf6 {[%emt 0:04:07]} Nxc2 {[%emt 0:06:20]} 23. f7+ {[%emt 0:03:21]} Kd8 {[%emt 0:00:46]} 24. Rxd5+ {[%emt 0:01:10]} Kc7 {[%emt 0:00:11]} 25. Qe5+ {[%emt 0:00:32]} 1-0

[Event "GER-ch Youth U12 2020"]
[Site "Willingen"]
[Date "2020.10.28"]
[Round "3.10"]
[White "Uhlmann, Tim"]
[Black "Deschler, Arne"]
[Result "1/2-1/2"]
[ECO "B75"]
[WhiteElo "1523"]
[BlackElo "1671"]
[Annotator "NA"]
[PlyCount "88"]
[EventDate "2020.10.27"]
[EventType "swiss"]
[EventRounds "7"]
[EventCountry "GER"]
[SourceTitle "playchess.com"]
[Source "ChessBase"]
[SourceQuality "1"]
[TimeControl "40/5400+30:1800+30"]

1. e4 {[%emt 0:00:00]} c5 {[%emt 0:00:00]} 2. Nf3 {[%emt 0:00:00]} d6 {[%emt 0:00:00]} 3. d4 {[%emt 0:00:00]} cxd4 {[%emt 0:00:00]} 4. Nxd4 {[%emt 0:00:00]} Nf6 {[%emt 0:00:10]} 5. Nc3 {[%emt 0:00:15]} g6 {[%emt 0:00:26]} 6. Be3 {[%emt 0:00:18]} Bg7 {[%emt 0:00:35]} 7. f3 {[%emt 0:00:12]} a6 {[%emt 0:00:44]} 8. Qd2 {[%emt 0:00:13]} b5 {[%emt 0:00:49]} 9. O-O-O {[%emt 0:00:25]} Bb7 {[%emt 0:01:06]} 10. g4 {[%emt 0:00:19]} b4 {[%emt 0:02:45]} 11. Na4 {[%emt 0:02:22]} a5 {[%emt 0:05:40]} 12. Bb5+ {[%emt 0:03:45]} Nfd7 {[%emt 0:02:56]} 13. h4 {[%emt 0:04:48]} Ba6 {[%emt 0:02:10]} 14. Bxa6 {[%emt 0:02:15]} Nxa6 {[%emt 0:01:34]} 15. h5 {[%emt 0:00:58]} Ne5 {[%emt 0:01:40]} 16. b3 {[%emt 0:01:18]} Nc5 {[%emt 0:01:18]} 17. h6 {[%emt 0:02:50]} Bf6 {[%emt 0:03:50]} 18. g5 {[%emt 0:08:00]} Nxa4 {[%emt 0:01:28]} 19. bxa4 {[%emt 0:00:08]} Nc4 {[%emt 0:00:45]} 20. Qe2 {[%emt 0:00:09]} Nxe3 {[%emt 0:00:17]} 21. Qxe3 {[%emt 0:00:10]} Bxd4 {[%emt 0:00:23]} 22. Qxd4 {[%emt 0:00:11]} Rg8 {[%emt 0:03:36]} 23. f4 {[%emt 0:02:03]} Qc7 {[%emt 0:01:12]} 24. Rhe1 {[%emt 0:01:46]} O-O-O {[%emt 0:05:30]} 25. Qd5 {[%emt 0:01:13]} e6 {[%emt 0:04:20]} 26. Qb5 {[%emt 0:01:52]} Qc5 {[%emt 0:00:30]} 27. Re2 {[%emt 0:27:54]} Rd7 {[%emt 0:04:20]} 28. Red2 {[%emt 0:06:16]} Rgd8 {[%emt 0:01:33]} 29. Qxc5+ {[%emt 0:12:58]} dxc5 {[%emt 0:00:09]} 30. Rxd7 {[%emt 0:00:44]} Rxd7 {[%emt 0:00:21]} 31. Rxd7 {[%emt 0:00:13]} Kxd7 {[%emt 0:00:01]} 32. Kd2 {[%emt 0:00:09]} Kd6 {[%emt 0:09:02]} 33. Kd3 {[%emt 0:01:01]} e5 {[%emt 0:01:22]} 34. f5 {[%emt 0:00:09]} Kd7 {[%emt 0:04:30]} 35. Kc4 {[%emt 0:00:25]} Kc6 {[%emt 0:00:55]} 36. fxg6 {[%emt 0:00:13]} fxg6 {[%emt 0:00:08]} 37. c3 {[%emt 0:01:04]} bxc3 {[%emt 0:00:50]} 38. Kxc3 {[%emt 0:00:07]} Kd6 {[%emt 0:00:17]} 39. Kc4 {[%emt 0:00:05]} Kc6 {[%emt 0:00:01]} 40. a3 {[%emt 0:00:06]} Kd6 {[%emt 0:00:10]} 41. Kb5 {[%emt 0:31:05]} c4 {[%emt 0:30:01]} 42. Kxc4 {[%emt 0:00:08]} Kc6 {[%emt 0:00:04]} 43. Kd3 {[%emt 0:00:25]} Kc5 {[%emt 0:00:10]} 44. Kc3 {[%emt 0:00:05]} Kb6 {[%emt 0:00:12]} 1/2-1/2

[Event "GER-ch Youth U12 2020"]
[Site "Willingen"]
[Date "2020.10.28"]
[Round "3.11"]
[White "Gärtner, Alessandro"]
[Black "Haubold, Sebastian Marcel"]
[Result "0-1"]
[ECO "A48"]
[WhiteElo "1251"]
[BlackElo "1769"]
[Annotator "NA"]
[PlyCount "118"]
[EventDate "2020.10.27"]
[EventType "swiss"]
[EventRounds "7"]
[EventCountry "GER"]
[SourceTitle "playchess.com"]
[Source "ChessBase"]
[SourceQuality "1"]
[TimeControl "40/5400+30:1800+30"]

1. d4 {[%emt 0:00:00]} Nf6 {[%emt 0:00:00]} 2. Nf3 {[%emt 0:00:00]} g6 {[%emt 0:00:00]} 3. Bf4 {[%emt 0:00:00]} Bg7 {[%emt 0:00:00]} 4. e3 {[%emt 0:00:15]} O-O {[%emt 0:00:04]} 5. h3 {[%emt 0:00:09]} d6 {[%emt 0:00:14]} 6. Be2 {[%emt 0:00:16]} Nc6 {[%emt 0:02:10]} 7. O-O {[%emt 0:00:16]} Nd7 {[%emt 0:01:28]} 8. Bh2 {[%emt 0:00:32]} e5 {[%emt 0:00:14]} 9. c3 {[%emt 0:00:51]} e4 {[%emt 0:02:49]} 10. Nfd2 {[%emt 0:00:21]} f5 {[%emt 0:00:32]} 11. Bc4+ {[%emt 0:02:31]} Kh8 {[%emt 0:01:07]} 12. b4 {[%emt 0:00:55]} Nf6 {[%emt 0:03:41]} 13. a4 {[%emt 0:02:04]} Ne7 {[%emt 0:03:44]} 14. Qb3 {[%emt 0:03:55]} g5 {[%emt 0:08:45]} 15. Na3 {[%emt 0:02:57]} Ng6 {[%emt 0:01:27]} 16. Rae1 {[%emt 0:01:05]} d5 {[%emt 0:01:53]} 17. Be2 {[%emt 0:00:57]} f4 {[%emt 0:01:27]} 18. Kh1 {[%emt 0:01:48]} f3 {[%emt 0:10:10]} 19. gxf3 {[%emt 0:00:47]} Bxh3 {[%emt 0:00:07]} 20. Rg1 {[%emt 0:00:14]} exf3 {[%emt 0:00:41]} 21. Bxf3 {[%emt 0:00:34]} g4 {[%emt 0:00:39]} 22. Bg2 {[%emt 0:03:07]} Bxg2+ {[%emt 0:06:07]} 23. Rxg2 {[%emt 0:03:11]} Nh4 {[%emt 0:00:17]} 24. Rg3 {[%emt 0:01:47]} Nh5 {[%emt 0:02:56]} 25. Rxg4 {[%emt 0:02:04]} Rxf2 {[%emt 0:00:05]} 26. Nab1 {[%emt 0:00:44]} Qf6 {[%emt 0:18:58]} 27. Qxd5 {[%emt 0:04:17]} Rxh2+ {[%emt 0:01:11]} 28. Kxh2 {[%emt 0:01:21]} Qf2+ {[%emt 0:00:39]} 29. Kh3 {[%emt 0:01:17]} Qxe1 {[%emt 0:01:36]} 30. Qxh5 {[%emt 0:03:54]} Qh1+ {[%emt 0:00:20]} 31. Kg3 {[%emt 0:00:28]} Qg2+ {[%emt 0:00:12]} 32. Kxh4 {[%emt 0:02:23]} Bf6+ {[%emt 0:00:45]} 33. Rg5 {[%emt 0:00:36]} Rg8 {[%emt 0:00:51]} 34. Nf3 {[%emt 0:00:28]} Bxg5+ {[%emt 0:00:26]} 35. Nxg5 {[%emt 0:00:34]} Qh1+ {[%emt 0:00:08]} 36. Kg4 {[%emt 0:00:37]} Qxb1 {[%emt 0:00:05]} 37. Qh2 {[%emt 0:08:53]} Qd1+ {[%emt 0:06:41]} 38. Kh4 {[%emt 0:06:23]} Qe1+ {[%emt 0:00:07]} 39. Kg4 {[%emt 0:00:53]} Rxg5+ {[%emt 0:00:35]} 40. Kxg5 {[%emt 0:00:16]} Qxe3+ {[%emt 0:00:05]} 41. Qf4 {[%emt 0:30:30]} Qxf4+ {[%emt 0:30:26]} 42. Kxf4 {[%emt 0:00:05]} Kg7 {[%emt 0:00:07]} 43. a5 {[%emt 0:06:30]} a6 {[%emt 0:01:41]} 44. c4 {[%emt 0:00:09]} c6 {[%emt 0:00:05]} 45. d5 {[%emt 0:00:16]} cxd5 {[%emt 0:00:08]} 46. c5 {[%emt 0:01:35]} Kf6 {[%emt 0:00:36]} 47. b5 {[%emt 0:00:41]} Ke6 {[%emt 0:00:10]} 48. c6 {[%emt 0:00:22]} Kd6 {[%emt 0:00:08]} 49. cxb7 {[%emt 0:00:23]} Kc7 {[%emt 0:00:06]} 50. bxa6 {[%emt 0:00:12]} h5 {[%emt 0:00:06]} 51. Kf3 {[%emt 0:03:24]} h4 {[%emt 0:00:16]} 52. Kg4 {[%emt 0:03:23]} d4 {[%emt 0:00:06]} 53. Kxh4 {[%emt 0:00:41]} d3 {[%emt 0:00:06]} 54. Kg3 {[%emt 0:00:06]} d2 {[%emt 0:00:04]} 55. Kf2 {[%emt 0:00:03]} d1=Q {[%emt 0:00:17]} 56. Ke3 {[%emt 0:00:09]} Qe1+ {[%emt 0:00:10]} 57. Kd4 {[%emt 0:00:12]} Qxa5 {[%emt 0:00:06]} 58. b8=Q+ {[%emt 0:00:08]} Kxb8 {[%emt 0:00:10]} 59. a7+ {[%emt 0:00:21]} Kxa7 {[%emt 0:00:09]} 0-1

[Event "GER-ch Youth U12 2020"]
[Site "Willingen"]
[Date "2020.10.28"]
[Round "3.12"]
[White "Aravindan, Midhulan"]
[Black "Krüger, Arthur"]
[Result "0-1"]
[ECO "C01"]
[WhiteElo "1565"]
[BlackElo "1704"]
[Annotator "NA"]
[PlyCount "91"]
[EventDate "2020.10.27"]
[EventType "swiss"]
[EventRounds "7"]
[EventCountry "GER"]
[SourceTitle "playchess.com"]
[Source "ChessBase"]
[SourceQuality "1"]
[TimeControl "40/5400+30:1800+30"]

1. e4 {[%emt 0:00:00]} e6 {[%emt 0:00:00]} 2. d4 {[%emt 0:00:00]} d5 {[%emt 0:00:00]} 3. exd5 {[%emt 0:00:54]} exd5 {[%emt 0:00:00]} 4. Bd3 {[%emt 0:00:05]} Nf6 {[%emt 0:00:09]} 5. Nf3 {[%emt 0:01:17]} c5 {[%emt 0:00:09]} 6. Qe2+ {[%emt 0:01:21]} Qe7 {[%emt 0:08:23]} 7. c3 {[%emt 0:05:49]} Qxe2+ {[%emt 0:02:16]} 8. Bxe2 {[%emt 0:00:16]} Nc6 {[%emt 0:00:44]} 9. Bf4 {[%emt 0:02:18]} Bf5 {[%emt 0:03:55]} 10. Nbd2 {[%emt 0:02:32]} cxd4 {[%emt 0:02:36]} 11. Nxd4 {[%emt 0:02:46]} Nxd4 {[%emt 0:02:28]} 12. cxd4 {[%emt 0:00:16]} Bb4 {[%emt 0:02:02]} 13. a3 {[%emt 0:05:04]} Ba5 {[%emt 0:02:48]} 14. O-O {[%emt 0:00:50]} O-O {[%emt 0:00:57]} 15. b4 {[%emt 0:01:51]} Bb6 {[%emt 0:01:01]} 16. Nb3 {[%emt 0:00:40]} Rfe8 {[%emt 0:06:49]} 17. Bf3 {[%emt 0:05:34]} Be4 {[%emt 0:01:34]} 18. Bxe4 {[%emt 0:04:23]} Rxe4 {[%emt 0:05:21]} 19. Be5 {[%emt 0:01:29]} Nd7 {[%emt 0:05:42]} 20. Rfe1 {[%emt 0:09:47]} Nxe5 {[%emt 0:04:40]} 21. Rxe4 {[%emt 0:02:19]} dxe4 {[%emt 0:00:45]} 22. dxe5 {[%emt 0:00:07]} Re8 {[%emt 0:02:00]} 23. Nc5 {[%emt 0:09:13]} Bxc5 {[%emt 0:03:31]} 24. bxc5 {[%emt 0:00:19]} Rxe5 {[%emt 0:00:24]} 25. Rc1 {[%emt 0:00:31]} Rd5 {[%emt 0:02:46]} 26. Kf1 {[%emt 0:00:44]} g6 {[%emt 0:01:23]} 27. Ke2 {[%emt 0:01:24]} Rd3 {[%emt 0:02:05]} 28. Rb1 {[%emt 0:02:28]} b6 {[%emt 0:02:55]} 29. cxb6 {[%emt 0:02:45]} axb6 {[%emt 0:00:18]} 30. f3 {[%emt 0:05:55]} Rxa3 {[%emt 0:05:59]} 31. fxe4 {[%emt 0:01:17]} Ra6 {[%emt 0:02:34]} 32. h4 {[%emt 0:01:33]} Kf8 {[%emt 0:01:53]} 33. Ke3 {[%emt 0:01:16]} Ke7 {[%emt 0:00:42]} 34. g4 {[%emt 0:01:13]} Ke6 {[%emt 0:02:44]} 35. Kf4 {[%emt 0:01:57]} h6 {[%emt 0:01:46]} 36. Rb5 {[%emt 0:03:57]} Kf6 {[%emt 0:03:34]} 37. Rd5 {[%emt 0:02:39]} Ke6 {[%emt 0:01:32]} 38. Rb5 {[%emt 0:04:38]} Kd6 {[%emt 0:02:53]} 39. Rd5+ {[%emt 0:00:32]} Kc6 {[%emt 0:02:06]} 40. Ke5 {[%emt 0:00:54]} Ra5 {[%emt 0:05:11]} 41. Kf6 {[%emt 0:32:23]} Rxd5 {[%emt 0:31:40]} 42. exd5+ {[%emt 0:00:11]} Kxd5 {[%emt 0:05:47]} 43. Kxf7 {[%emt 0:00:26]} g5 {[%emt 0:01:04]} 44. Kg6 {[%emt 0:00:34]} gxh4 {[%emt 0:00:13]} 45. Kxh6 {[%emt 0:00:08]} h3 {[%emt 0:00:05]} 46. Kg5 0-1

[Event "GER-ch Youth U12 2020"]
[Site "Willingen"]
[Date "2020.10.28"]
[Round "3.13"]
[White "Bräutigam, Alexander"]
[Black "Weyerer, Noah"]
[Result "1-0"]
[ECO "A91"]
[WhiteElo "1631"]
[BlackElo "1536"]
[Annotator "NA"]
[PlyCount "69"]
[EventDate "2020.10.27"]
[EventType "swiss"]
[EventRounds "7"]
[EventCountry "GER"]
[SourceTitle "playchess.com"]
[Source "ChessBase"]
[SourceQuality "1"]
[TimeControl "40/5400+30:1800+30"]

1. d4 {[%emt 0:00:00]} e6 {[%emt 0:00:00]} 2. c4 {[%emt 0:00:00]} f5 {[%emt 0:00:00]} 3. g3 {[%emt 0:00:06]} Nf6 {[%emt 0:00:29]} 4. Bg2 {[%emt 0:00:17]} Be7 {[%emt 0:01:10]} 5. Nc3 {[%emt 0:00:57]} d6 {[%emt 0:00:42]} 6. Nf3 {[%emt 0:00:42]} O-O {[%emt 0:00:13]} 7. O-O {[%emt 0:00:21]} Ne4 {[%emt 0:00:33]} 8. Qc2 {[%emt 0:01:03]} Nxc3 {[%emt 0:00:17]} 9. bxc3 {[%emt 0:00:17]} Bf6 {[%emt 0:01:27]} 10. Re1 {[%emt 0:02:28]} e5 {[%emt 0:03:38]} 11. e4 {[%emt 0:00:48]} f4 {[%emt 0:02:50]} 12. Ba3 {[%emt 0:00:59]} fxg3 {[%emt 0:02:20]} 13. fxg3 {[%emt 0:00:43]} Nc6 {[%emt 0:01:32]} 14. d5 {[%emt 0:03:24]} Ne7 {[%emt 0:03:49]} 15. c5 {[%emt 0:00:33]} Bg4 {[%emt 0:03:17]} 16. Rf1 {[%emt 0:02:23]} Qd7 {[%emt 0:05:43]} 17. Rab1 {[%emt 0:02:06]} b6 {[%emt 0:02:30]} 18. c6 {[%emt 0:01:38]} Qe8 {[%emt 0:03:26]} 19. h3 {[%emt 0:01:43]} Bxf3 {[%emt 0:04:58]} 20. Rxf3 {[%emt 0:00:19]} Qg6 {[%emt 0:01:19]} 21. Rbf1 {[%emt 0:01:29]} Bg5 {[%emt 0:02:38]} 22. Kh2 {[%emt 0:01:45]} Rxf3 {[%emt 0:01:41]} 23. Rxf3 {[%emt 0:00:25]} Rf8 {[%emt 0:02:37]} 24. Qf2 {[%emt 0:01:33]} Rxf3 {[%emt 0:04:06]} 25. Qxf3 {[%emt 0:00:13]} Qf6 {[%emt 0:08:19]} 26. Qxf6 {[%emt 0:01:02]} gxf6 {[%emt 0:03:03]} 27. h4 {[%emt 0:01:33]} Bd2 {[%emt 0:01:51]} 28. c4 {[%emt 0:00:06]} f5 {[%emt 0:02:24]} 29. exf5 {[%emt 0:02:06]} Nxf5 {[%emt 0:01:00]} 30. Be4 {[%emt 0:01:07]} Ne3 {[%emt 0:01:38]} 31. Bxd6 {[%emt 0:00:11]} Nxc4 {[%emt 0:01:59]} 32. Bxc7 {[%emt 0:00:18]} Bb4 {[%emt 0:01:47]} 33. Bxe5 {[%emt 0:00:58]} Bd6 {[%emt 0:01:33]} 34. c7 {[%emt 0:00:23]} Bxc7 {[%emt 0:01:13]} 35. Bxc7 1-0

[Event "GER-ch Youth U12 2020"]
[Site "Willingen"]
[Date "2020.10.28"]
[Round "3.14"]
[White "Vecera, Fabio"]
[Black "Korek, Jakob Alexander"]
[Result "0-1"]
[ECO "C44"]
[WhiteElo "1534"]
[BlackElo "1592"]
[Annotator "NA"]
[PlyCount "70"]
[EventDate "2020.10.27"]
[EventType "swiss"]
[EventRounds "7"]
[EventCountry "GER"]
[SourceTitle "playchess.com"]
[Source "ChessBase"]
[SourceQuality "1"]
[TimeControl "40/5400+30:1800+30"]

1. e4 {[%emt 0:00:00]} e5 {[%emt 0:00:00]} 2. Nf3 {[%emt 0:00:00]} Nc6 {[%emt 0:00:06]} 3. d4 {[%emt 0:00:00]} exd4 {[%emt 0:00:59]} 4. Bc4 {[%emt 0:00:03]} Bc5 {[%emt 0:00:32]} 5. c3 {[%emt 0:00:07]} Nf6 {[%emt 0:00:25]} 6. O-O {[%emt 0:01:28]} Nxe4 {[%emt 0:09:12]} 7. Re1 {[%emt 0:02:27]} d5 {[%emt 0:02:17]} 8. Bb5 {[%emt 0:01:03]} O-O {[%emt 0:01:17]} 9. Bxc6 {[%emt 0:01:32]} bxc6 {[%emt 0:00:57]} 10. Nxd4 {[%emt 0:00:24]} Qf6 {[%emt 0:00:59]} 11. Be3 {[%emt 0:00:18]} Qd6 {[%emt 0:10:13]} 12. Nd2 {[%emt 0:04:23]} Nxd2 {[%emt 0:01:42]} 13. Qxd2 {[%emt 0:00:02]} Bb6 {[%emt 0:08:13]} 14. Bg5 {[%emt 0:01:59]} Be6 {[%emt 0:03:37]} 15. Re2 {[%emt 0:06:34]} c5 {[%emt 0:03:37]} 16. Nxe6 {[%emt 0:04:49]} fxe6 {[%emt 0:00:52]} 17. Rae1 {[%emt 0:01:54]} Rae8 {[%emt 0:01:29]} 18. Re5 {[%emt 0:06:22]} c4 {[%emt 0:02:06]} 19. R1e2 {[%emt 0:03:37]} Rxf2 {[%emt 0:02:39]} 20. Rxf2 {[%emt 0:10:37]} Bxf2+ {[%emt 0:00:24]} 21. Qxf2 {[%emt 0:00:34]} Qxe5 {[%emt 0:00:18]} 22. Bf4 {[%emt 0:00:29]} Qe4 {[%emt 0:00:37]} 23. Bxc7 {[%emt 0:00:22]} Qb1+ {[%emt 0:00:35]} 24. Qf1 {[%emt 0:00:18]} Qxb2 {[%emt 0:00:36]} 25. Be5 {[%emt 0:00:57]} Qxa2 {[%emt 0:01:10]} 26. h3 {[%emt 0:00:15]} Rf8 {[%emt 0:01:09]} 27. Qe1 {[%emt 0:00:23]} a5 {[%emt 0:09:36]} 28. Qh4 {[%emt 0:01:15]} Qb1+ {[%emt 0:07:03]} 29. Kh2 {[%emt 0:00:28]} Qb7 {[%emt 0:01:49]} 30. Qg4 {[%emt 0:05:21]} Qe7 {[%emt 0:01:57]} 31. Bxg7 {[%emt 0:03:04]} Qxg7 {[%emt 0:01:12]} 32. Qxe6+ {[%emt 0:00:08]} Qf7 {[%emt 0:00:59]} 33. Qg4+ {[%emt 0:00:18]} Qg6 {[%emt 0:01:04]} 34. Qd7 {[%emt 0:01:22]} Qf5 {[%emt 0:00:55]} 35. Qa7 Qe5+ 0-1

[Event "GER-ch Youth U12 2020"]
[Site "Willingen"]
[Date "2020.10.28"]
[Round "3.15"]
[White "Brandstrup, Luca Alexander"]
[Black "Haubold, Christian Lucas"]
[Result "0-1"]
[ECO "C45"]
[WhiteElo "1575"]
[BlackElo "1615"]
[Annotator "NA"]
[PlyCount "128"]
[EventDate "2020.10.27"]
[EventType "swiss"]
[EventRounds "7"]
[EventCountry "GER"]
[SourceTitle "playchess.com"]
[Source "ChessBase"]
[SourceQuality "1"]
[TimeControl "40/5400+30:1800+30"]

1. e4 {[%emt 0:00:00]} e5 {[%emt 0:00:00]} 2. Nf3 {[%emt 0:00:00]} Nc6 {[%emt 0:00:00]} 3. d4 {[%emt 0:00:00]} exd4 {[%emt 0:00:09]} 4. Nxd4 {[%emt 0:00:00]} Bc5 {[%emt 0:00:06]} 5. Be3 {[%emt 0:00:03]} Qf6 {[%emt 0:00:09]} 6. c3 {[%emt 0:00:19]} Nge7 {[%emt 0:00:12]} 7. Bc4 {[%emt 0:00:12]} O-O {[%emt 0:00:19]} 8. O-O {[%emt 0:00:24]} b6 {[%emt 0:00:42]} 9. f3 {[%emt 0:03:45]} Bb7 {[%emt 0:09:59]} 10. b4 {[%emt 0:02:21]} Bxd4 {[%emt 0:01:49]} 11. Bxd4 {[%emt 0:00:16]} Nxd4 {[%emt 0:00:58]} 12. cxd4 {[%emt 0:01:05]} Nc6 {[%emt 0:03:35]} 13. e5 {[%emt 0:02:42]} Qf4 {[%emt 0:00:48]} 14. Bd5 {[%emt 0:01:53]} Rad8 {[%emt 0:07:27]} 15. Bxc6 {[%emt 0:03:56]} dxc6 {[%emt 0:00:54]} 16. g3 {[%emt 0:02:39]} Qe3+ {[%emt 0:00:58]} 17. Kg2 {[%emt 0:06:44]} Rxd4 {[%emt 0:01:27]} 18. Re1 {[%emt 0:01:34]} Rxd1 {[%emt 0:01:10]} 19. Rxe3 {[%emt 0:00:15]} Rfd8 {[%emt 0:01:11]} 20. Kf2 {[%emt 0:01:17]} Ba6 {[%emt 0:01:30]} 21. Re1 {[%emt 0:01:21]} Rxe1 {[%emt 0:01:23]} 22. Kxe1 {[%emt 0:00:19]} Re8 {[%emt 0:00:21]} 23. f4 {[%emt 0:00:51]} f6 {[%emt 0:00:13]} 24. Nc3 {[%emt 0:01:19]} fxe5 {[%emt 0:00:41]} 25. fxe5 {[%emt 0:00:23]} Rxe5+ {[%emt 0:00:11]} 26. Kf2 {[%emt 0:01:16]} Rf5+ {[%emt 0:02:34]} 27. Kg2 {[%emt 0:00:43]} Bb7 {[%emt 0:01:09]} 28. Kh3 {[%emt 0:00:49]} Rh5+ {[%emt 0:01:25]} 29. Kg4 {[%emt 0:02:19]} Rxh2 {[%emt 0:02:16]} 30. Rd1 {[%emt 0:00:22]} Rf2 {[%emt 0:01:05]} 31. Ne4 {[%emt 0:02:08]} Rf8 {[%emt 0:03:22]} 32. Ng5 {[%emt 0:02:28]} h6 {[%emt 0:00:39]} 33. Nh3 {[%emt 0:01:36]} Bc8+ {[%emt 0:00:35]} 34. Kh4 {[%emt 0:00:30]} g5+ {[%emt 0:00:45]} 35. Nxg5 {[%emt 0:00:12]} hxg5+ {[%emt 0:00:07]} 36. Kxg5 {[%emt 0:00:05]} Be6 {[%emt 0:01:22]} 37. a3 {[%emt 0:01:00]} Rf5+ {[%emt 0:01:46]} 38. Kg6 {[%emt 0:00:16]} Rd5 {[%emt 0:00:26]} 39. Re1 {[%emt 0:00:30]} Bf7+ {[%emt 0:00:41]} 40. Kf6 {[%emt 0:00:24]} Rd6+ {[%emt 0:02:03]} 41. Kf5 {[%emt 0:30:21]} Kf8 {[%emt 0:32:01]} 42. g4 {[%emt 0:00:49]} Bb3 {[%emt 0:07:02]} 43. g5 {[%emt 0:01:35]} Rd1 {[%emt 0:05:14]} 44. Re2 {[%emt 0:01:10]} Rf1+ {[%emt 0:01:27]} 45. Ke5 {[%emt 0:02:31]} Rf7 {[%emt 0:04:36]} 46. Rh2 {[%emt 0:01:36]} Kg7 {[%emt 0:02:53]} 47. Rh6 {[%emt 0:01:49]} Bd5 {[%emt 0:00:39]} 48. b5 {[%emt 0:04:15]} Re7+ {[%emt 0:00:22]} 49. Kf5 {[%emt 0:00:38]} cxb5 {[%emt 0:00:44]} 50. Rf6 {[%emt 0:00:32]} Rf7 {[%emt 0:01:34]} 51. Rxf7+ {[%emt 0:00:19]} Bxf7 {[%emt 0:00:07]} 52. Ke5 {[%emt 0:00:12]} c5 {[%emt 0:00:12]} 53. Ke4 {[%emt 0:00:06]} b4 {[%emt 0:00:24]} 54. axb4 {[%emt 0:00:08]} cxb4 {[%emt 0:00:06]} 55. Kd3 {[%emt 0:00:03]} b3 {[%emt 0:00:11]} 56. Kc3 {[%emt 0:00:07]} a5 {[%emt 0:00:05]} 57. Kb2 {[%emt 0:00:09]} a4 {[%emt 0:00:07]} 58. Ka3 {[%emt 0:00:10]} b5 {[%emt 0:00:05]} 59. Kb2 {[%emt 0:00:15]} b4 {[%emt 0:00:04]} 60. g6 {[%emt 0:00:07]} Kxg6 {[%emt 0:00:41]} 61. Ka1 Kg5 62. Kb2 {[%emt 0:02:08]} a3+ {[%emt 0:00:44]} 63. Kb1 {[%emt 0:00:12]} b2 {[%emt 0:00:22]} 64. Kc2 {[%emt 0:00:12]} Ba2 0-1